fUSD/lending_fUSD_20241106
["ID","MTS","AMOUNT","RATE_DAILY","PERIOD"]
[341426064,1730875839725,-153.55,0.00037808,2]
[341426065,1730875839734,-241.54,0.00037808,2]
[341426066,1730875839744,-150.0,0.00037808,2]
[341426068,1730875839753,-150.0,0.00037808,2]
[341426070,1730875839764,-302.07,0.00037808,2]
[341426071,1730875839773,-5406.98220747,0.00037887,2]
[341426072,1730875839785,-1040.0,0.00037887,2]
[341426073,1730875839796,-18199.02942099,0.00037887,2]
[341426074,1730875839808,-5919.15323282,0.00037887,2]
[341426075,1730875839819,-721.14273872,0.00037887,2]
[341426076,1730875839828,-2303.38721049,0.00037887,2]
[341426077,1730875839839,-995.53202002,0.00037887,2]
[341426078,1730875839850,-888.22114037,0.00037887,2]
[341426079,1730875839861,-415.6276761,0.00037887,2]
[341426080,1730875839870,-263.05235092,0.00037888,14]
[341426081,1730875839885,-236.94764908,0.00037888,14]
[341426082,1730875839895,-515.77461077,0.00037888,14]
[341426083,1730875839904,-28.13590051,0.00037888,14]
[341426084,1730875839916,-150.95409949,0.00037888,14]
[341426085,1730875839925,-151.21458851,0.00037888,14]
[341426086,1730875839938,-401.79541149,0.00037888,14]
[341426087,1730875839948,-500.0,0.00037888,14]
[341426088,1730875839957,-500.0,0.00037888,14]
[341426089,1730875839968,-500.0,0.00037888,14]
[341426090,1730875839977,-500.0,0.00037888,14]
[341426091,1730875839987,-500.0,0.00037888,14]
[341426092,1730875839996,-621.9,0.00037888,14]
[341426093,1730875840006,-500.0,0.00037888,14]
[341426094,1730875840015,-500.0,0.00037888,14]
[341426095,1730875840025,-500.0,0.00037888,14]
[341426096,1730875840038,-500.0,0.00037888,14]
[341426097,1730875840047,-500.0,0.00037888,14]
[341426098,1730875840057,-500.0,0.00037888,14]
[341426099,1730875840066,-500.0,0.00037888,14]
[341426100,1730875840076,-500.0,0.00037888,14]
[341426101,1730875840086,-500.0,0.00037888,14]
[341426102,1730875840095,-500.0,0.00037888,14]
[341426103,1730875840104,-500.0,0.00037888,14]
[341426104,1730875840114,-541.52,0.00037888,14]
[341426105,1730875840123,-500.0,0.00037888,14]
[341426106,1730875840133,-500.0,0.00037888,14]
[341426107,1730875840142,-500.0,0.00037888,14]
[341426108,1730875840151,-500.0,0.00037888,14]
[341426109,1730875840161,-500.0,0.00037888,14]
[341426110,1730875840170,-500.0,0.00037888,14]
[341426111,1730875840180,-500.0,0.00037888,14]
[341426112,1730875840189,-500.0,0.00037888,14]
[341426113,1730875840199,-500.0,0.00037888,14]
[341426114,1730875840209,-500.0,0.00037888,14]
[341426115,1730875840218,-500.0,0.00037888,14]
[341426116,1730875840228,-500.0,0.00037888,14]
[341426117,1730875840237,-500.0,0.00037888,14]
[341426118,1730875840246,-500.0,0.00037888,14]
[341426119,1730875840256,-500.0,0.00037888,14]
[341426120,1730875840266,-500.0,0.00037888,14]
[341426121,1730875840275,-500.0,0.00037888,14]
[341426122,1730875840286,-500.0,0.00037888,14]
[341426123,1730875840295,-440.03039126,0.00037888,14]
[341426124,1730875840304,-500.0,0.00037888,14]
[341426125,1730875840313,-539.19,0.00037888,14]
[341426126,1730875840323,-244.00768069,0.00037888,14]
[341426127,1730875840332,-500.0,0.00037888,14]
[341426128,1730875840342,-278.0229884,0.00037888,14]
[341426129,1730875840352,-500.0,0.00037888,14]
[341426130,1730875840361,-500.0,0.00037888,14]
[341426131,1730875840371,-500.0,0.00037888,14]
[341426132,1730875840381,-625.52,0.00037888,14]
[341426133,1730875840390,-500.0,0.00037888,14]
[341426134,1730875840399,-500.0,0.00037888,14]
[341426135,1730875840408,-500.0,0.00037888,14]
[341426136,1730875840418,-500.0,0.00037888,14]
[341426137,1730875840427,-500.0,0.00037888,14]
[341426138,1730875840437,-500.0,0.00037888,14]
[341426139,1730875840447,-500.0,0.00037888,14]
[341426140,1730875840456,-500.0,0.00037888,14]
[341426141,1730875840465,-500.0,0.00037888,14]
[341426142,1730875840474,-500.0,0.00037888,14]
[341426143,1730875840484,-500.0,0.00037888,14]
[341426144,1730875840493,-500.0,0.00037888,14]
[341426145,1730875840503,-500.0,0.00037888,14]
[341426146,1730875840513,-500.0,0.00037888,14]
[341426147,1730875840522,-500.0,0.00037888,14]
[341426148,1730875840533,-508.68717007,0.00037888,14]
[341426149,1730875840542,-246.95569305,0.00037888,14]
[341426150,1730875840551,-622.11,0.00037888,14]
[341426151,1730875840560,-500.0,0.00037888,7]
[341426152,1730875840569,-504.58918037,0.00037888,14]
[341426153,1730875840579,-637.19604975,0.00037888,14]
[341426154,1730875840588,-159.8926287,0.00037888,14]
[341426155,1730875840598,-500.0,0.00037888,14]
[341426156,1730875840607,-316.48248145,0.00037888,14]
[341426157,1730875840617,-596.01,0.00037892,2]
[341426158,1730875840626,-1255.62,0.00037899,2]
[341426159,1730875840635,-300.4955955,0.000379,12]
[341426160,1730875840645,-682.67,0.00037928,14]
[341426161,1730875840659,-500.0,0.00037928,14]
[341426162,1730875840668,-691.19,0.00037928,14]
[341426163,1730875840677,-500.0,0.00037928,14]
[341426164,1730875840686,-500.0,0.00037928,14]
[341426165,1730875840697,-500.0,0.00037928,14]
[341426166,1730875840706,-500.0,0.00037928,14]
[341426167,1730875840716,-500.0,0.00037928,14]
[341426168,1730875840726,-500.0,0.00037928,14]
[341426169,1730875840736,-263.44920968,0.00037928,14]
[341426170,1730875840745,-500.0,0.00037928,14]
[341426171,1730875840755,-500.0,0.00037928,14]
[341426172,1730875840764,-500.0,0.00037928,14]
[341426173,1730875840774,-500.0,0.00037928,14]
[341426174,1730875840785,-500.0,0.00037928,14]
[341426175,1730875840795,-500.0,0.00037928,14]
[341426176,1730875840804,-500.0,0.00037928,14]
[341426177,1730875840813,-500.0,0.00037928,14]
[341426178,1730875840823,-500.0,0.00037928,14]
[341426179,1730875840832,-500.0,0.00037928,14]
[341426180,1730875840841,-500.0,0.00037928,14]
[341426181,1730875840851,-500.0,0.00037928,14]
[341426182,1730875840860,-500.0,0.00037928,14]
[341426183,1730875840870,-500.0,0.00037928,14]
[341426184,1730875840879,-1193.23,0.00037928,14]
[341426185,1730875840888,-1386.53,0.00037928,14]
[341426186,1730875840898,-518.85676756,0.00037973,2]
[341426187,1730875840908,-500.0,0.00037987,14]
[341426188,1730875840917,-500.0,0.00037987,14]
[341426189,1730875840926,-500.0,0.00037987,14]
[341426190,1730875840936,-500.0,0.00037987,14]
[341426191,1730875840945,-500.0,0.00037987,14]
[341426192,1730875840955,-500.0,0.00037987,14]
[341426193,1730875840964,-543.16817584,0.00037987,14]
[341426194,1730875840974,-307.10928892,0.00037987,14]
[341426195,1730875840983,-500.0,0.00037987,14]
[341426196,1730875840992,-500.0,0.00037987,14]
[341426197,1730875841001,-500.0,0.00037987,14]
[341426198,1730875841011,-571.13106278,0.00037987,14]
[341426199,1730875841021,-500.0,0.00037987,14]
[341426200,1730875841031,-500.0,0.00037987,14]
[341426201,1730875841041,-500.0,0.00037987,14]
[341426202,1730875841050,-500.0,0.00037987,14]
[341426203,1730875841060,-500.0,0.00037987,14]
[341426204,1730875841069,-565.65,0.00037987,14]
[341426205,1730875841079,-500.0,0.00037987,14]
[341426206,1730875841088,-500.0,0.00037988,14]
[341426207,1730875841098,-500.0,0.00037988,14]
[341426208,1730875841107,-500.0,0.00037988,14]
[341426209,1730875841117,-500.0,0.00037988,14]
[341426210,1730875841126,-500.0,0.00037988,14]
[341426211,1730875841136,-500.0,0.00037988,14]
[341426212,1730875841145,-503.55553792,0.00037988,14]
[341426213,1730875841154,-500.36287127,0.00037988,14]
[341426214,1730875841163,-644.17035314,0.00037988,14]
[341426215,1730875841173,-500.0,0.00037988,14]
[341426216,1730875841182,-500.0,0.00037988,14]
[341426217,1730875841192,-192.74,0.00037988,14]
[341426218,1730875841201,-500.0,0.00037994,15]
[341426219,1730875841210,-500.0,0.00037994,15]
[341426220,1730875841220,-490.5289092,0.00037994,15]
[341426221,1730875841230,-500.0,0.00037996,14]
[341426222,1730875841239,-504.16498813,0.00037996,14]
[341426223,1730875841248,-500.0,0.00037996,14]
[341426224,1730875841258,-500.0,0.00037996,14]
[341426225,1730875841267,-500.0,0.00037996,14]
[341426226,1730875841276,-209.58847122,0.00037996,14]
[341426227,1730875841289,-527.47151052,0.00037996,14]
[341426228,1730875841298,-464.99,0.00037996,14]
[341426229,1730875841307,-539.63046184,0.00037996,14]
[341426230,1730875841316,-500.0,0.00037996,14]
[341426231,1730875841326,-323.35,0.00037996,14]
[341426232,1730875841335,-562.16,0.00037996,14]
[341426233,1730875841346,-209.11274603,0.00037996,14]
[341426234,1730875841360,-290.88725397,0.00037996,14]
[341426235,1730875841369,-467.21,0.00037996,14]
[341426236,1730875841379,-527.79600019,0.00037996,14]
[341426237,1730875841388,-341.16085789,0.00037996,14]
[341426238,1730875841399,-158.83914211,0.00037996,14]
[341426239,1730875841409,-113.21085788,0.00037996,14]
[341426240,1730875841555,-281.37574166,0.00037996,14]
[341426241,1730875841567,-105.41340046,0.00037996,14]
[341426242,1730875841577,-183.20194961,0.00037996,14]
[341426243,1730875841589,-336.68076641,0.00037996,14]
[341426244,1730875841598,-500.0,0.00037996,14]
[341426245,1730875841608,-500.0,0.00037996,14]
[341426246,1730875841617,-500.0,0.00037996,14]
[341426247,1730875841626,-500.0,0.00037996,14]
[341426248,1730875841635,-500.0,0.00037996,14]
[341426249,1730875841645,-375.53119142,0.00037996,14]
[341426250,1730875841659,-500.0,0.00037996,14]
[341426251,1730875841668,-500.0,0.00037996,14]
[341426252,1730875841677,-500.0,0.00037996,14]
[341426253,1730875841686,-500.0,0.00037996,14]
[341426254,1730875841696,-151.528372,0.00037996,14]
[341426255,1730875841705,-154.785655,0.00037996,14]
[341426256,1730875841715,-500.0,0.00037996,14]
[341426257,1730875841724,-577.21,0.00037996,14]
[341426258,1730875841734,-201.6,0.00037996,14]
[341426259,1730875841744,-577.69887499,0.00037996,14]
[341426260,1730875841753,-500.0,0.00037996,14]
[341426261,1730875841762,-500.0,0.00037996,14]
[341426262,1730875841772,-500.0,0.00037996,14]
[341426263,1730875841781,-500.0,0.00037996,14]
[341426264,1730875841790,-501.95796552,0.00037996,14]
[341426265,1730875841799,-500.0,0.00037996,14]
[341426266,1730875841808,-539.19,0.00037996,14]
[341426267,1730875841818,-500.0,0.00037996,14]
[341426268,1730875841827,-500.0,0.00037996,14]
[341426269,1730875841836,-500.0,0.00037996,14]
[341426270,1730875841846,-500.0,0.00037996,14]
[341426271,1730875841855,-500.0,0.00037996,14]
[341426272,1730875841864,-500.0,0.00037996,14]
[341426273,1730875841873,-500.0,0.00037996,14]
[341426274,1730875841883,-500.0,0.00037996,14]
[341426275,1730875841892,-500.0,0.00037996,14]
[341426276,1730875841902,-500.0,0.00037996,14]
[341426277,1730875841912,-500.0,0.00037996,14]
[341426278,1730875841922,-376.94206897,0.00037996,14]
[341426279,1730875841932,-500.0,0.00037996,14]
[341426280,1730875841942,-500.0,0.00037996,14]
[341426281,1730875841951,-500.0,0.00037996,14]
[341426282,1730875841961,-500.0,0.00037996,14]
[341426283,1730875841972,-500.0,0.00037996,14]
[341426284,1730875841982,-419.34497835,0.00037996,14]
[341426285,1730875841991,-622.11,0.00037996,14]
[341426286,1730875842001,-500.0,0.00037996,7]
[341426287,1730875842011,-500.0,0.00037996,14]
[341426288,1730875842020,-500.0,0.00037996,14]
[341426289,1730875842029,-500.0,0.00037996,2]
[341426290,1730875842039,-153.90710878,0.00037997,2]
[341426291,1730875842048,-500.0,0.00037997,14]
[341426292,1730875842057,-682.67,0.00037997,14]
[341426293,1730875842067,-500.0,0.00037997,14]
[341426294,1730875842076,-302.21148232,0.00037997,14]
[341426295,1730875842085,-406.93550182,0.00037997,14]
[341426326,1730875843038,-284.25449818,0.00037997,14]
[341426327,1730875843047,-89.44641182,0.00037997,14]
[341426328,1730875843058,-504.23332249,0.00037997,14]
[341426329,1730875843067,-500.0,0.00037997,14]
[341426330,1730875843076,-500.0,0.00037997,14]
[341426331,1730875843085,-500.0,0.00037997,14]
[341426332,1730875843094,-500.0,0.00037997,14]
[341426333,1730875843103,-93.70592495,0.00037997,14]
[341426334,1730875843114,-406.29407505,0.00037997,14]
[341426335,1730875843123,-500.0,0.00037997,14]
[341426336,1730875843131,-186.15608901,0.00037997,14]
[341426337,1730875843142,-313.84391099,0.00037997,14]
[341426338,1730875843151,-500.0,0.00037997,14]
[341426339,1730875843160,-500.0,0.00037997,14]
[341426340,1730875843169,-290.79529203,0.00037997,14]
[341426341,1730875843178,-201.09,0.00037997,14]
[341426342,1730875843187,-513.80787551,0.00037997,14]
[341426343,1730875843196,-46.67972186,0.00037997,14]
[341426344,1730875843207,-453.32027814,0.00037997,14]
[341426345,1730875843216,-51.61487782,0.00037997,14]
[341426354,1730875845949,-500.0,0.00037996,14]
[341426355,1730875845959,-448.38512218,0.00037997,14]
[341426356,1730875845968,-500.0,0.00037997,14]
[341426357,1730875845978,-641.64509337,0.00037997,14]
[341426358,1730875845987,-500.0,0.00037997,14]
[341426359,1730875845998,-500.0,0.00037997,14]
[341426360,1730875846007,-562.50558565,0.00037997,14]
[341426361,1730875846016,-500.0,0.00037997,14]
[341426362,1730875846025,-500.0,0.00037997,14]
[341426363,1730875846035,-500.0,0.00037997,14]
[341426364,1730875846046,-500.0,0.00037997,14]
[341426365,1730875846057,-340.07034331,0.00037997,14]
[341426370,1730875846474,-25.96173056,0.00037997,14]
[341426372,1730875846489,-168.45493141,0.00037997,14]
[341426374,1730875846499,-500.0,0.00037997,14]
[341426376,1730875846510,-500.0,0.00037997,14]
[341426378,1730875846521,-500.0,0.00037997,14]
[341426380,1730875846531,-649.59,0.00037997,14]
[341426382,1730875846544,-500.0,0.00037997,14]
[341426384,1730875846554,-500.0,0.00037997,14]
[341426386,1730875846564,-500.0,0.00037997,14]
[341426388,1730875846575,-500.0,0.00037997,14]
[341426390,1730875846585,-213.0,0.00037997,14]
[341426392,1730875846596,-500.0,0.00037997,14]
[341426395,1730875846607,-192.03,0.00037997,14]
[341426397,1730875846618,-500.0,0.00037997,14]
[341426399,1730875846628,-500.0,0.00037997,14]
[341426400,1730875846638,-263.57,0.00037997,14]
[341426402,1730875846649,-154.785655,0.00037997,14]
[341426404,1730875846663,-500.0,0.00037997,14]
[341426405,1730875846672,-500.0,0.00037997,14]
[341426406,1730875846682,-500.0,0.00037997,14]
[341426407,1730875846693,-500.0,0.00037997,14]
[341426408,1730875846703,-500.0,0.00037997,14]
[341426409,1730875846713,-500.0,0.00037997,14]
[341426410,1730875846724,-500.0,0.00037997,14]
[341426411,1730875846733,-1193.23,0.00037997,14]
[341426412,1730875846743,-1386.53,0.00037997,14]
[341426413,1730875846752,-285.14,0.00037997,14]
[341426414,1730875846761,-500.0,0.00037997,14]
[341426415,1730875846771,-500.0,0.00037997,14]
[341426416,1730875846780,-500.0,0.00037997,14]
[341426417,1730875846793,-500.0,0.00037997,14]
[341426418,1730875846802,-539.19,0.00037997,14]
[341426419,1730875846812,-500.0,0.00037997,14]
[341426420,1730875846821,-500.0,0.00037997,14]
[341426421,1730875846831,-500.0,0.00037997,14]
[341426422,1730875846840,-500.0,0.00037997,14]
[341426423,1730875846849,-500.0,0.00037997,14]
[341426424,1730875846858,-500.0,0.00037997,14]
[341426425,1730875846868,-169.47941359,0.00037997,14]
[341426426,1730875846884,-208.41058641,0.00037997,14]
[341426427,1730875846893,-505.76793223,0.00037997,14]
[341426428,1730875846903,-189.14835127,0.00037997,14]
[341426429,1730875846914,-43.60164873,0.00037997,14]
[341426430,1730875846923,-327.05835127,0.00037997,14]
[341426431,1730875847073,-42.68183418,0.00037997,14]
[341426432,1730875847096,-130.25981455,0.00037997,14]
[341426433,1730875847106,-500.0,0.00037997,14]
[341426434,1730875847115,-500.0,0.00037997,14]
[341426435,1730875847125,-500.0,0.00037997,14]
[341426436,1730875847135,-500.0,0.00037997,14]
[341426437,1730875847144,-500.0,0.00037997,14]
[341426438,1730875847154,-500.0,0.00037997,14]
[341426439,1730875847164,-500.0,0.00037997,14]
[341426440,1730875847173,-500.0,0.00037997,14]
[341426441,1730875847182,-500.0,0.00037997,14]
[341426442,1730875847192,-622.11,0.00037997,14]
[341426443,1730875847201,-150.0,0.00037997,14]
[341426444,1730875847211,-500.0,0.00037997,14]
[341426445,1730875847221,-241.51874811,0.00037997,14]
[341426446,1730875847230,-524.75,0.00037997,14]
[341426447,1730875847239,-500.0,0.00037997,14]
[341426448,1730875847248,-61.44527318,0.00037997,14]
[341426449,1730875847260,-170.31188811,0.00037997,14]
[341426450,1730875847270,-500.0,0.00037997,14]
[341426451,1730875847279,-449.16811189,0.00037997,14]
[341426452,1730875855606,150.0,0.00018123,2]
[341426453,1730875856970,170.6325,0.0003,2]
[341426454,1730875897248,151.29102044,0.00018123,2]
[341426457,1730876562279,156.74,0.00016712,2]
[341426458,1730876620134,9016.0,0.00019452,2]
[341426459,1730876705789,155.82,0.00015342,2]
[341426460,1730876740149,-250.0,0.00021,2]
[341426461,1730876740173,-300.0,0.00023,2]
[341426462,1730876740193,-350.0,0.00025,2]
[341426463,1730876740214,-400.0,0.00027,2]
[341426464,1730876740234,-155.82,0.00028858,2]
[341426465,1730876740255,-200.0,0.000342,2]
[341426466,1730876740277,-1639.77411273,0.000342,2]
[341426467,1730876740297,-644.27,0.00034528,2]
[341426468,1730876740316,-185.97,0.00034992,2]
[341426469,1730876740336,-411.40379745,0.0003583,2]
[341426471,1730876830106,-1179.0886863,0.000235,2]
[341426472,1730876852106,-757.9113137,0.000235,2]
[341426473,1730876852127,-110.73620255,0.0003583,2]
[341426474,1730876852149,-522.14,0.00036406,2]
[341426475,1730876852171,-255.74,0.00036455,120]
[341426476,1730876852197,-250.0,0.00036462,2]
[341426477,1730876852218,-250.0,0.00036462,120]
[341426478,1730876852240,-250.0,0.00036473,2]
[341426479,1730876852262,-300.0,0.00036491,2]
[341426480,1730876852283,-1755.25,0.0003655,2]
[341426481,1730876852305,-512.0,0.00036583,2]
[341426482,1730876852329,-337.88,0.00036665,120]
[341426483,1730876852349,-198.02,0.00036671,2]
[341426484,1730876852369,-223.55,0.00036731,2]
[341426485,1730876852390,-644.27,0.00036792,2]
[341426486,1730876852411,-488.0,0.00036858,2]
[341426487,1730876852431,-767.0,0.0003687,2]
[341426488,1730876852453,-170.6325,0.00036935,2]
[341426489,1730876852475,-522.14,0.00036982,2]
[341426490,1730876852494,-1181.939,0.00037045,2]
[341426491,1730876852515,-110.79223788,0.00037045,2]
[341426495,1730877012765,150.0,0.00018123,2]
[341426514,1730877032002,-326.33,0.00036027,2]
[341426515,1730877032011,-1022.42,0.00036548,2]
[341426516,1730877032021,-326.33,0.00036606,2]
[341426517,1730877032031,-590.4,0.00036838,2]
[341426518,1730877032042,-198.02,0.00036847,2]
[341426519,1730877032051,-200.0,0.00036859,7]
[341426520,1730877032061,-600.0,0.000371,13]
[341426521,1730877032072,-326.33,0.00037185,2]
[341426522,1730877032081,-1300.0,0.000372,13]
[341426523,1730877032090,-787.539,0.00037287,48]
[341426524,1730877032099,-2000.0,0.000373,13]
[341426525,1730877032108,-2700.0,0.000374,13]
[341426526,1730877032117,-3400.0,0.000375,13]
[341426527,1730877032126,-600.0,0.000376,13]
[341426528,1730877032136,-204.62161481,0.00037614,2]
[341426529,1730877032145,-204.62161481,0.00037618,2]
[341426530,1730877032154,-776.51209,0.0003762,2]
[341426531,1730877032163,-4168.57163011,0.00037626,2]
[341426532,1730877032173,-204.62161481,0.00037633,2]
[341426533,1730877032182,-8876.35892898,0.00037638,2]
[341426534,1730877032195,-7604.1,0.00037638,2]
[341426535,1730877032206,-500.0,0.00037638,2]
[341426536,1730877032217,-92199.96834404,0.00037638,2]
[341426537,1730877032229,-415.368,0.00037638,2]
[341426538,1730877032240,-27637.3545605,0.00037638,2]
[341426539,1730877032252,-8008.51950183,0.00037638,2]
[341426540,1730877032263,-37113.70490508,0.00037638,2]
[341426541,1730877032274,-3770.0,0.00037638,2]
[341426565,1730877038080,-14895.8,0.00037638,2]
[341426566,1730877038313,-504.13754567,0.00037638,2]
[341426567,1730877038324,-13832.16618833,0.00037638,2]
[341426568,1730877038335,-7002.01490192,0.00037638,2]
[341426569,1730877038346,-5214.21369209,0.00037638,2]
[341426570,1730877038357,-4989.50913661,0.00037638,2]
[341426571,1730877038368,-20855.53874742,0.00037638,2]
[341426580,1730877039929,-250.0,0.00036944,120]
[341426581,1730877039938,-26359.2794556,0.00037638,2]
[341426583,1730877039996,-367.99877986,0.00037638,2]
[341426584,1730877040009,-312.3160075,0.00037638,2]
[341426585,1730877040051,-820.31832,0.00037638,2]
[341426586,1730877040063,-381.35844663,0.00037638,2]
[341426587,1730877040118,-531.86291969,0.00037638,2]
[341426588,1730877040129,-384.644286,0.00037638,2]
[341426589,1730877040292,-3468.35000355,0.00037638,2]
[341426604,1730877043012,-39835.8916,0.00037638,2]
[341426605,1730877043158,-2337.72239091,0.00037638,2]
[341426606,1730877043170,-4570.44887846,0.00037638,2]
[341426607,1730877043212,-12073.17282759,0.00037638,2]
[341426608,1730877043271,-398.07436933,0.00037638,2]
[341426609,1730877043472,-770.96,0.00036849,2]
[341426611,1730877043481,-347.275,0.00037638,2]
[341426650,1730877046109,-5456.84890341,0.00037638,2]
[341426651,1730877046121,-3456.45,0.00037638,2]
[341426652,1730877046133,-5225.68163728,0.00037638,2]
[341426661,1730877054364,150.0,0.00018123,2]
[341426662,1730877111139,1920.0,0.00024,2]
[341426663,1730877115926,5000.0,0.00035,120]
[341426664,1730877121249,154.46,0.00029541,2]
[341426665,1730877140909,500.0,0.0003,30]
[341426666,1730877255682,156.84,0.00015342,2]
[341426669,1730877646552,208.7,0.00035,120]
[341426670,1730877797551,322.0,0.00035,120]
[341426672,1730877872591,158.04,0.00015342,2]
[341426673,1730877901758,300.0,0.00019725,2]
[341426674,1730877906456,150.0,0.00018123,2]
[341426675,1730877908536,89906.56,0.00016,2]
[341426676,1730877908560,5000.0,0.00016,2]
[341426677,1730877908591,172931.06502333,0.00016,2]
[341426680,1730878027083,-257.52935624,0.0001892,2]
[341426681,1730878041135,-2748.38627749,0.0001892,2]
[341426682,1730878050092,-1904.37009306,0.0001892,2]
[341426683,1730878050113,-1908.0,0.000238,2]
[341426684,1730878050134,-500.0,0.00024932,2]
[341426685,1730878050156,-158.04,0.00027507,2]
[341426686,1730878050177,-498.0,0.00027814,2]
[341426687,1730878050197,-169.86825,0.0003,2]
[341426688,1730878050218,-187.60575,0.0003,2]
[341426689,1730878050239,-2979.4,0.00034076,10]
[341426690,1730878050260,-612.97,0.00034076,2]
[341426691,1730878050283,-200.0,0.000342,2]
[341426692,1730878050304,-164.85,0.00034253,2]
[341426693,1730878050325,-169.86825,0.00034698,2]
[341426694,1730878050349,-187.60575,0.00034902,2]
[341426695,1730878050369,-179.56,0.00035019,2]
[341426696,1730878050388,-572.08,0.00035019,2]
[341426697,1730878050408,-1353.75067575,0.00035419,3]
[341426698,1730878050428,-250.0,0.00035479,2]
[341426699,1730878050449,-7112.26,0.00035519,2]
[341426700,1730878050470,-394.54,0.0003558,120]
[341426701,1730878050492,-228.11,0.00035605,2]
[341426702,1730878050516,-150.0,0.00035616,2]
[341426703,1730878050545,-300.0,0.00035616,2]
[341426704,1730878050569,-122.59639016,0.00035631,2]
[341426718,1730878145132,-151.28882876,0.00018123,2]
[341426719,1730878145152,-250.0,0.00021,2]
[341426720,1730878145172,-300.0,0.00023,2]
[341426721,1730878145192,-1228.65165489,0.00023922,2]
[341426722,1730878145211,-720.46805479,0.00025,2]
[341426723,1730878145231,-2141.98807476,0.00025,2]
[341426724,1730878145251,-350.0,0.00025,2]
[341426725,1730878145270,-2734.01970724,0.00025,30]
[341426726,1730878145290,-400.0,0.00027,2]
[341426727,1730878145309,-450.0,0.00029,2]
[341426728,1730878145328,-508.58595963,0.0003,2]
[341426729,1730878145350,-289.43,0.0003,2]
[341426730,1730878145371,-309.229751,0.00031,2]
[341426737,1730878232165,-463.71754155,0.00034902,2]
[341426739,1730878232177,-6206.72245845,0.00034902,2]
[341426741,1730878232186,-6670.44,0.00035463,2]
[341426743,1730878232195,-200.0,0.00035615,2]
[341426744,1730878232205,-410.95360984,0.00035631,2]
[341426745,1730878232215,-276.76,0.00035651,120]
[341426746,1730878232224,-250.0,0.00035734,120]
[341426747,1730878232234,-1000.0,0.00035749,2]
[341426748,1730878232244,-200.0,0.00035824,7]
[341426749,1730878232254,-245.7,0.00035851,2]
[341426750,1730878232263,-1734.38,0.00035851,2]
[341426751,1730878232272,-150.99,0.00035851,2]
[341426752,1730878232282,-445.68,0.00035851,10]
[341426753,1730878232292,-1575.48,0.00035851,2]
[341426754,1730878232301,-2471.86,0.00035851,2]
[341426755,1730878232311,-742.54,0.00035859,120]
[341426756,1730878232320,-150.09,0.00035868,120]
[341426757,1730878232329,-761.58,0.0003589,2]
[341426758,1730878232339,-761.58,0.0003589,2]
[341426759,1730878232348,-1353.75067575,0.00035902,3]
[341426760,1730878232357,-761.58,0.00035941,2]
[341426761,1730878232367,-342.37,0.00035961,120]
[341426762,1730878232376,-300.0,0.00036001,2]
[341426763,1730878232386,-22996.78216004,0.00036002,2]
[341426764,1730878232402,-745.41201734,0.00036002,2]
[341426765,1730878232419,-157.80582262,0.00036002,2]
[341426766,1730878232428,-5516.84970617,0.00036014,2]
[341426767,1730878232439,-6244.07379941,0.00036024,2]
[341426768,1730878232454,-426.36620059,0.00036024,2]